[Event "Titled Tuesday Blitz August 08 Late 2023"]
[White "Hng, Mei-En Emmanuelle"]
[Black "Orlov, Georgi"]
[WhiteFideId "5804566"]
[BlackFideId "2011271"]
[WhiteElo "2283"]
[BlackElo "2547"]
[Result "1-0"]
[Round "10"]
[TimeControl "180+1"]
[Date "2023.08.08"]
[WhiteClock "0:02:13"]
[BlackClock "0:02:23"]
[Board "84"]

1. e4 {[%clk 0:03:00]}  b6 {[%clk 0:02:58]} 2. d4 {[%clk 0:02:58]}  Bb7 {[%clk 0:02:59]} 3. Nc3 {[%clk 0:02:59]}  e6 {[%clk 0:02:58]} 4. Bd3 {[%clk 0:02:58]}  f5 {[%clk 0:02:56]} 5. exf5 {[%clk 0:02:46]}  Bxg2 {[%clk 0:02:55]} 6. Qh5+ {[%clk 0:02:46]}  Ke7 {[%clk 0:02:54]} 7. Qg5+ {[%clk 0:02:42]}  Nf6 {[%clk 0:02:54]} 8. Qxg2 {[%clk 0:02:43]}  Nc6 {[%clk 0:02:54]} 9. fxe6 {[%clk 0:02:39]}  Nxd4 {[%clk 0:02:53]} 10. exd7 {[%clk 0:02:28]}  c6 {[%clk 0:02:39]} 11. Nf3 {[%clk 0:02:16]}  Nxf3+ {[%clk 0:02:34]} 12. Qxf3 {[%clk 0:02:16]}  Qxd7 {[%clk 0:02:35]} 13. Bg5 {[%clk 0:02:15]}  b5 {[%clk 0:02:23]} 14. O-O-O {[%clk 0:02:13]} 1-0


[Site "https://www.chess.com"]

[Event "Titled Tuesday Blitz August 08 Late 2023"]
[White "ciroreva-CB"]
[Black "Swicarz, Maciej"]
[BlackFideId "1113585"]
[WhiteElo "2333"]
[BlackElo "2426"]
[Result "0-1"]
[Round "10"]
[TimeControl "180+1"]
[Date "2023.08.08"]
[WhiteClock "0:00:09"]
[BlackClock "0:00:45"]
[Board "88"]

1. e4 {[%clk 0:03:00]}  c5 {[%clk 0:02:59]} 2. Nf3 {[%clk 0:02:59]}  d6 {[%clk 0:02:58]} 3. c3 {[%clk 0:02:59]}  Nf6 {[%clk 0:02:57]} 4. h3 {[%clk 0:02:59]}  Nc6 {[%clk 0:02:55]} 5. Bd3 {[%clk 0:02:58]}  g6 {[%clk 0:02:53]} 6. Bc2 {[%clk 0:02:57]}  Bg7 {[%clk 0:02:51]} 7. d4 {[%clk 0:02:58]}  cxd4 {[%clk 0:02:49]} 8. cxd4 {[%clk 0:02:58]}  O-O {[%clk 0:02:48]} 9. O-O {[%clk 0:02:58]}  Nb4 {[%clk 0:02:42]} 10. Bb3 {[%clk 0:02:58]}  d5 {[%clk 0:02:31]} 11. e5 {[%clk 0:02:58]}  Ne4 {[%clk 0:02:31]} 12. Nc3 {[%clk 0:02:58]}  Be6 {[%clk 0:02:20]} 13. Re1 {[%clk 0:02:22]}  Nxc3 {[%clk 0:02:12]} 14. bxc3 {[%clk 0:02:23]}  Nc6 {[%clk 0:02:12]} 15. Ng5 {[%clk 0:02:19]}  Qd7 {[%clk 0:02:12]} 16. Bd2 {[%clk 0:01:56]}  Rac8 {[%clk 0:02:09]} 17. Qe2 {[%clk 0:01:40]}  Na5 {[%clk 0:02:07]} 18. Rac1 {[%clk 0:01:38]}  Nc4 {[%clk 0:02:07]} 19. Nf3 {[%clk 0:01:30]}  Bf5 {[%clk 0:02:04]} 20. Bf4 {[%clk 0:01:25]}  h6 {[%clk 0:01:57]} 21. Nd2 {[%clk 0:01:24]}  Nb6 {[%clk 0:01:51]} 22. Qe3 {[%clk 0:00:56]}  Kh7 {[%clk 0:01:49]} 23. c4 {[%clk 0:00:53]}  dxc4 {[%clk 0:01:47]} 24. Nxc4 {[%clk 0:00:53]}  Nd5 {[%clk 0:01:43]} 25. Qd2 {[%clk 0:00:51]}  Be6 {[%clk 0:01:35]} 26. Be3 {[%clk 0:00:46]}  Rfd8 {[%clk 0:01:32]} 27. Red1 {[%clk 0:00:44]}  b6 {[%clk 0:01:22]} 28. Qb2 {[%clk 0:00:36]}  Qb5 {[%clk 0:01:17]} 29. Bd2 {[%clk 0:00:25]}  Nb4 {[%clk 0:01:05]} 30. Bxb4 {[%clk 0:00:24]}  Qxb4 {[%clk 0:01:05]} 31. Qd2 {[%clk 0:00:19]}  Qxd2 {[%clk 0:01:00]} 32. Rxd2 {[%clk 0:00:19]}  b5 {[%clk 0:00:55]} 33. d5 {[%clk 0:00:12]}  Rxd5 {[%clk 0:00:49]} 34. Rxd5 {[%clk 0:00:09]}  Bxd5 {[%clk 0:00:48]} 35. Rd1 {[%clk 0:00:08]}  Bxc4 {[%clk 0:00:44]} 36. Bxc4 {[%clk 0:00:08]}  bxc4 {[%clk 0:00:45]} 37. Rd7 {[%clk 0:00:09]}  c3 {[%clk 0:00:45]} 38. Rxe7 {[%clk 0:00:09]}  c2 {[%clk 0:00:45]} 0-1


[Site "https://www.chess.com"]

[Event "Titled Tuesday Blitz August 08 Late 2023"]
[White "Salazar Farias, Luis German"]
[Black "Gerbelli Neto, Eduardo"]
[WhiteFideId "3902170"]
[BlackFideId "2103281"]
[WhiteElo "2420"]
[BlackElo "2326"]
[Result "1-0"]
[Round "10"]
[TimeControl "180+1"]
[Date "2023.08.08"]
[WhiteClock "0:00:13"]
[BlackClock "0:00:46"]
[Board "89"]

1. d4 {[%clk 0:02:56]}  d5 {[%clk 0:02:55]} 2. c4 {[%clk 0:02:56]}  c6 {[%clk 0:02:54]} 3. Nc3 {[%clk 0:02:55]}  Nf6 {[%clk 0:02:54]} 4. e3 {[%clk 0:02:54]}  e6 {[%clk 0:02:54]} 5. Nf3 {[%clk 0:02:51]}  Nbd7 {[%clk 0:02:53]} 6. Bd3 {[%clk 0:02:51]}  dxc4 {[%clk 0:02:53]} 7. Bxc4 {[%clk 0:02:52]}  b5 {[%clk 0:02:53]} 8. Bd3 {[%clk 0:02:52]}  a6 {[%clk 0:02:54]} 9. e4 {[%clk 0:02:49]}  c5 {[%clk 0:02:54]} 10. e5 {[%clk 0:02:42]}  cxd4 {[%clk 0:02:54]} 11. Nxb5 {[%clk 0:02:40]}  axb5 {[%clk 0:02:55]} 12. exf6 {[%clk 0:02:10]}  gxf6 {[%clk 0:02:55]} 13. O-O {[%clk 0:01:42]}  Qb6 {[%clk 0:02:55]} 14. a4 {[%clk 0:01:28]}  Bb7 {[%clk 0:02:17]} 15. Bxb5 {[%clk 0:01:09]}  Rd8 {[%clk 0:02:16]} 16. Qxd4 {[%clk 0:01:05]}  Qxd4 {[%clk 0:02:06]} 17. Nxd4 {[%clk 0:01:04]}  Rg8 {[%clk 0:02:07]} 18. f3 {[%clk 0:00:56]}  Bc5 {[%clk 0:02:07]} 19. Be3 {[%clk 0:00:56]}  Ke7 {[%clk 0:02:07]} 20. Bxd7 {[%clk 0:00:49]}  Bxd4 {[%clk 0:01:50]} 21. Bxd4 {[%clk 0:00:49]}  Rxd7 {[%clk 0:01:51]} 22. Rad1 {[%clk 0:00:34]}  Bd5 {[%clk 0:01:43]} 23. a5 {[%clk 0:00:27]}  e5 {[%clk 0:01:40]} 24. Bc3 {[%clk 0:00:26]}  Ke6 {[%clk 0:01:32]} 25. Kf2 {[%clk 0:00:23]}  f5 {[%clk 0:01:27]} 26. Rfe1 {[%clk 0:00:20]}  f6 {[%clk 0:01:27]} 27. Rd2 {[%clk 0:00:19]}  Rb7 {[%clk 0:01:19]} 28. Red1 {[%clk 0:00:18]}  Rb5 {[%clk 0:01:20]} 29. Ra1 {[%clk 0:00:18]}  Ra8 {[%clk 0:01:15]} 30. Ra4 {[%clk 0:00:18]}  f4 {[%clk 0:01:13]} 31. Ra1 {[%clk 0:00:17]}  h5 {[%clk 0:01:12]} 32. g3 {[%clk 0:00:18]}  fxg3+ {[%clk 0:01:09]} 33. hxg3 {[%clk 0:00:19]}  f5 {[%clk 0:01:04]} 34. Rh1 {[%clk 0:00:17]}  Rh8 {[%clk 0:00:59]} 35. Re2 {[%clk 0:00:17]}  Bb7 {[%clk 0:00:56]} 36. Rhe1 {[%clk 0:00:16]}  h4 {[%clk 0:00:54]} 37. Rxe5+ {[%clk 0:00:15]}  Rxe5 {[%clk 0:00:54]} 38. Rxe5+ {[%clk 0:00:16]}  Kd6 {[%clk 0:00:54]} 39. gxh4 {[%clk 0:00:16]}  Rxh4 {[%clk 0:00:53]} 40. Rxf5 {[%clk 0:00:15]}  Rh2+ {[%clk 0:00:53]} 41. Kg3 {[%clk 0:00:15]}  Re2 {[%clk 0:00:51]} 42. Rf6+ {[%clk 0:00:14]}  Ke7 {[%clk 0:00:46]} 43. Rf4 {[%clk 0:00:13]} 1-0


[Site "https://www.chess.com"]

[Event "Titled Tuesday Blitz August 08 Late 2023"]
[White "KorolDimitriy75"]
[Black "GAO"]
[WhiteElo "2396"]
[BlackElo "2296"]
[Result "1-0"]
[Round "10"]
[TimeControl "180+1"]
[Date "2023.08.08"]
[WhiteClock "0:00:31"]
[BlackClock "0:01:45"]
[Board "90"]

1. d4 {[%clk 0:03:00]}  Nf6 {[%clk 0:02:57]} 2. c4 {[%clk 0:03:01]}  g6 {[%clk 0:02:57]} 3. Nc3 {[%clk 0:03:02]}  Bg7 {[%clk 0:02:57]} 4. e4 {[%clk 0:03:02]}  d6 {[%clk 0:02:58]} 5. Nf3 {[%clk 0:03:03]}  O-O {[%clk 0:02:58]} 6. Be2 {[%clk 0:03:03]}  e5 {[%clk 0:02:58]} 7. dxe5 {[%clk 0:03:04]}  dxe5 {[%clk 0:02:59]} 8. Qxd8 {[%clk 0:03:05]}  Rxd8 {[%clk 0:02:59]} 9. Bg5 {[%clk 0:03:06]}  c6 {[%clk 0:02:53]} 10. Nxe5 {[%clk 0:03:05]}  Re8 {[%clk 0:02:53]} 11. O-O-O {[%clk 0:03:06]}  h6 {[%clk 0:02:46]} 12. Bh4 {[%clk 0:03:05]}  Be6 {[%clk 0:02:35]} 13. f4 {[%clk 0:03:01]}  Nbd7 {[%clk 0:02:36]} 14. Nxd7 {[%clk 0:02:56]}  Nxd7 {[%clk 0:02:34]} 15. Kc2 {[%clk 0:02:41]}  f5 {[%clk 0:02:31]} 16. exf5 {[%clk 0:02:00]}  Bxf5+ {[%clk 0:02:28]} 17. Bd3 {[%clk 0:02:00]}  Bxd3+ {[%clk 0:02:25]} 18. Rxd3 {[%clk 0:02:00]}  Nc5 {[%clk 0:02:26]} 19. Rd2 {[%clk 0:01:42]}  Ne4 {[%clk 0:02:20]} 20. Nxe4 {[%clk 0:01:29]}  Rxe4 {[%clk 0:02:20]} 21. b3 {[%clk 0:01:21]}  Rxf4 {[%clk 0:02:20]} 22. Bg3 {[%clk 0:01:18]}  Rf7 {[%clk 0:02:18]} 23. Rhd1 {[%clk 0:01:17]}  Re8 {[%clk 0:02:16]} 24. Rd8 {[%clk 0:01:13]}  Re7 {[%clk 0:01:56]} 25. Rxe8+ {[%clk 0:01:11]}  Rxe8 {[%clk 0:01:57]} 26. Rd7 {[%clk 0:00:52]}  Re2+ {[%clk 0:01:56]} 27. Kd3 {[%clk 0:00:47]}  Rxg2 {[%clk 0:01:57]} 28. a4 {[%clk 0:00:44]}  Rb2 {[%clk 0:01:54]} 29. Rxg7+ {[%clk 0:00:42]}  Kxg7 {[%clk 0:01:46]} 30. Be5+ {[%clk 0:00:42]}  Kf7 {[%clk 0:01:47]} 31. Bxb2 {[%clk 0:00:42]}  Ke6 {[%clk 0:01:48]} 32. Ke4 {[%clk 0:00:42]}  a6 {[%clk 0:01:45]} 33. a5 {[%clk 0:00:38]}  Kd6 {[%clk 0:01:45]} 34. Bd4 {[%clk 0:00:36]}  Ke6 {[%clk 0:01:45]} 35. Be3 {[%clk 0:00:36]}  h5 {[%clk 0:01:45]} 36. h4 {[%clk 0:00:35]}  Kf6 {[%clk 0:01:45]} 37. Bg5+ {[%clk 0:00:34]}  Ke6 {[%clk 0:01:45]} 38. Kd4 {[%clk 0:00:34]}  Kd6 {[%clk 0:01:45]} 39. Bf4+ {[%clk 0:00:34]}  Ke6 {[%clk 0:01:44]} 40. Kc5 {[%clk 0:00:34]}  Kf5 {[%clk 0:01:43]} 41. Bg5 {[%clk 0:00:34]}  Ke4 {[%clk 0:01:42]} 42. Kb6 {[%clk 0:00:33]}  Kd4 {[%clk 0:01:43]} 43. Kxb7 {[%clk 0:00:33]}  Kc3 {[%clk 0:01:44]} 44. Kxc6 {[%clk 0:00:32]}  Kxb3 {[%clk 0:01:44]} 45. c5 {[%clk 0:00:30]}  Kb4 {[%clk 0:01:45]} 46. Kb6 {[%clk 0:00:30]}  Ka4 {[%clk 0:01:45]} 47. c6 {[%clk 0:00:31]} 1-0


[Site "https://www.chess.com"]

[Event "Titled Tuesday Blitz August 08 Late 2023"]
[White "Suarez Pousa, Diego"]
[Black "Clawitter, Craig"]
[WhiteFideId "2204509"]
[BlackFideId "2023105"]
[WhiteElo "2375"]
[BlackElo "2218"]
[Result "1-0"]
[Round "10"]
[TimeControl "180+1"]
[Date "2023.08.08"]
[WhiteClock "0:01:30"]
[BlackClock "0:00:31"]
[Board "91"]

1. e4 {[%clk 0:03:00]}  e6 {[%clk 0:03:00]} 2. d4 {[%clk 0:03:00]}  d5 {[%clk 0:03:00]} 3. Nc3 {[%clk 0:02:59]}  Bb4 {[%clk 0:03:00]} 4. exd5 {[%clk 0:02:58]}  exd5 {[%clk 0:02:59]} 5. Bd3 {[%clk 0:02:58]}  Nf6 {[%clk 0:02:59]} 6. Ne2 {[%clk 0:02:58]}  O-O {[%clk 0:02:59]} 7. O-O {[%clk 0:02:57]}  Re8 {[%clk 0:02:59]} 8. Ng3 {[%clk 0:02:57]}  c6 {[%clk 0:02:56]} 9. Bg5 {[%clk 0:02:55]}  Be7 {[%clk 0:02:55]} 10. h3 {[%clk 0:02:54]}  Nbd7 {[%clk 0:02:55]} 11. Nf5 {[%clk 0:02:54]}  Bf8 {[%clk 0:02:46]} 12. Qf3 {[%clk 0:02:52]}  Qb6 {[%clk 0:02:42]} 13. b3 {[%clk 0:02:44]}  Bb4 {[%clk 0:02:15]} 14. Na4 {[%clk 0:02:36]}  Qd8 {[%clk 0:02:13]} 15. c3 {[%clk 0:02:32]}  Bf8 {[%clk 0:02:11]} 16. Rae1 {[%clk 0:02:31]}  Rxe1 {[%clk 0:02:10]} 17. Rxe1 {[%clk 0:02:30]}  Nb6 {[%clk 0:02:05]} 18. Nh6+ {[%clk 0:02:26]}  gxh6 {[%clk 0:02:03]} 19. Bxf6 {[%clk 0:02:25]}  Qd6 {[%clk 0:01:48]} 20. Re8 {[%clk 0:02:24]}  Bd7 {[%clk 0:01:39]} 21. Re5 {[%clk 0:02:08]}  Bg7 {[%clk 0:01:19]} 22. Bxg7 {[%clk 0:01:56]}  Kxg7 {[%clk 0:01:20]} 23. Nc5 {[%clk 0:01:55]}  Re8 {[%clk 0:01:05]} 24. Qg3+ {[%clk 0:01:53]}  Kf6 {[%clk 0:00:43]} 25. Rf5+ {[%clk 0:01:33]}  Ke7 {[%clk 0:00:37]} 26. Rxf7+ {[%clk 0:01:30]}  Kxf7 {[%clk 0:00:33]} 27. Qxd6 {[%clk 0:01:30]}  Re1+ {[%clk 0:00:31]} 28. Kh2 {[%clk 0:01:30]} 1-0


[Site "https://www.chess.com"]

[Event "Titled Tuesday Blitz August 08 Late 2023"]
[White "Skaric, Djuro"]
[Black "Butti, Enrique"]
[WhiteFideId "934569"]
[BlackFideId "3700470"]
[WhiteElo "2321"]
[BlackElo "2212"]
[Result "0-1"]
[Round "10"]
[TimeControl "180+1"]
[Date "2023.08.08"]
[WhiteClock "0:00:38"]
[BlackClock "0:00:26"]
[Board "95"]

1. g3 {[%clk 0:03:00]}  d5 {[%clk 0:02:58]} 2. Bg2 {[%clk 0:03:00]}  e5 {[%clk 0:02:58]} 3. d3 {[%clk 0:03:01]}  c6 {[%clk 0:02:55]} 4. Nf3 {[%clk 0:03:02]}  Bd6 {[%clk 0:02:53]} 5. O-O {[%clk 0:03:02]}  Ne7 {[%clk 0:02:52]} 6. Nc3 {[%clk 0:03:01]}  O-O {[%clk 0:02:51]} 7. e4 {[%clk 0:03:01]}  d4 {[%clk 0:02:51]} 8. Ne2 {[%clk 0:03:01]}  c5 {[%clk 0:02:50]} 9. h3 {[%clk 0:03:02]}  f6 {[%clk 0:02:50]} 10. Ne1 {[%clk 0:03:02]}  Be6 {[%clk 0:02:49]} 11. f4 {[%clk 0:03:02]}  c4 {[%clk 0:02:48]} 12. f5 {[%clk 0:03:02]}  Bf7 {[%clk 0:02:47]} 13. g4 {[%clk 0:03:02]}  Nbc6 {[%clk 0:02:46]} 14. Rf2 {[%clk 0:03:03]}  Rc8 {[%clk 0:02:44]} 15. Bf1 {[%clk 0:03:03]}  Nb4 {[%clk 0:02:39]} 16. Ng3 {[%clk 0:03:03]}  cxd3 {[%clk 0:02:39]} 17. cxd3 {[%clk 0:03:01]}  Nxa2 {[%clk 0:02:30]} 18. Bd2 {[%clk 0:02:59]}  Qb6 {[%clk 0:02:23]} 19. h4 {[%clk 0:02:56]}  Nb4 {[%clk 0:02:15]} 20. Rg2 {[%clk 0:02:53]}  Kh8 {[%clk 0:02:07]} 21. Nh1 {[%clk 0:02:52]}  Rc7 {[%clk 0:02:03]} 22. Nf2 {[%clk 0:02:49]}  Rfc8 {[%clk 0:02:01]} 23. Nh3 {[%clk 0:02:49]}  Nc2 {[%clk 0:01:59]} 24. Nxc2 {[%clk 0:02:49]}  Rxc2 {[%clk 0:01:58]} 25. g5 {[%clk 0:02:49]}  Bb4 {[%clk 0:01:49]} 26. g6 {[%clk 0:02:43]}  Bxd2 {[%clk 0:01:38]} 27. gxf7 {[%clk 0:02:32]}  Be3+ {[%clk 0:01:37]} 28. Kh1 {[%clk 0:02:26]}  Rxg2 {[%clk 0:01:35]} 29. Bxg2 {[%clk 0:02:22]}  Rf8 {[%clk 0:01:27]} 30. Qa4 {[%clk 0:02:22]}  a6 {[%clk 0:01:23]} 31. Qe8 {[%clk 0:02:21]}  Qd8 {[%clk 0:01:21]} 32. Qa4 {[%clk 0:02:10]}  Rxf7 {[%clk 0:01:19]} 33. Qc4 {[%clk 0:02:10]}  Rf8 {[%clk 0:01:18]} 34. Bf3 {[%clk 0:02:09]}  Nc6 {[%clk 0:01:17]} 35. Bh5 {[%clk 0:02:08]}  Qb6 {[%clk 0:01:14]} 36. b3 {[%clk 0:02:02]}  Qb4 {[%clk 0:01:12]} 37. Qd5 {[%clk 0:02:01]}  Qd2 {[%clk 0:01:05]} 38. Rd1 {[%clk 0:01:49]}  Qc2 {[%clk 0:00:59]} 39. Qd7 {[%clk 0:01:37]}  Qxb3 {[%clk 0:00:54]} 40. Kg2 {[%clk 0:01:15]}  a5 {[%clk 0:00:53]} 41. Nf2 {[%clk 0:01:04]}  Qb2 {[%clk 0:00:46]} 42. Rf1 {[%clk 0:01:00]}  a4 {[%clk 0:00:45]} 43. Qd6 {[%clk 0:01:00]}  Rd8 {[%clk 0:00:43]} 44. Qc7 {[%clk 0:01:00]}  a3 {[%clk 0:00:42]} 45. Kf3 {[%clk 0:00:56]}  a2 {[%clk 0:00:39]} 46. Ng4 {[%clk 0:00:53]}  a1=Q {[%clk 0:00:34]} 47. Nxe3 {[%clk 0:00:52]}  dxe3 {[%clk 0:00:32]} 48. Rxa1 {[%clk 0:00:51]}  Qxa1 {[%clk 0:00:32]} 49. Qxb7 {[%clk 0:00:49]}  Qd4 {[%clk 0:00:28]} 50. Qxc6 {[%clk 0:00:45]}  Qxd3 {[%clk 0:00:28]} 51. Kg4 {[%clk 0:00:38]}  e2 {[%clk 0:00:26]} 0-1


[Site "https://www.chess.com"]

[Event "Titled Tuesday Blitz August 08 Late 2023"]
[White "Sabar Ethmane Daouda"]
[Black "Shapiro, Daniel"]
[WhiteFideId "19600097"]
[BlackFideId "2001780"]
[WhiteElo "2202"]
[BlackElo "2316"]
[Result "1-0"]
[Round "10"]
[TimeControl "180+1"]
[Date "2023.08.08"]
[WhiteClock "0:00:15"]
[BlackClock "0:00:00"]
[Board "97"]

1. b3 {[%clk 0:03:00]}  e5 {[%clk 0:02:59]} 2. Bb2 {[%clk 0:03:01]}  d6 {[%clk 0:02:59]} 3. e3 {[%clk 0:03:01]}  Nf6 {[%clk 0:02:59]} 4. d4 {[%clk 0:03:02]}  Nbd7 {[%clk 0:02:56]} 5. Nf3 {[%clk 0:03:00]}  e4 {[%clk 0:02:55]} 6. Nfd2 {[%clk 0:03:00]}  d5 {[%clk 0:02:55]} 7. c4 {[%clk 0:03:01]}  c6 {[%clk 0:02:56]} 8. a3 {[%clk 0:03:00]}  a5 {[%clk 0:02:54]} 9. Nc3 {[%clk 0:03:00]}  Bd6 {[%clk 0:02:51]} 10. Be2 {[%clk 0:03:00]}  h5 {[%clk 0:02:40]} 11. c5 {[%clk 0:02:52]}  Bc7 {[%clk 0:02:38]} 12. b4 {[%clk 0:02:48]}  axb4 {[%clk 0:02:13]} 13. axb4 {[%clk 0:02:49]}  Rxa1 {[%clk 0:02:13]} 14. Qxa1 {[%clk 0:02:50]}  Nf8 {[%clk 0:02:06]} 15. b5 {[%clk 0:02:47]}  Ng4 {[%clk 0:01:30]} 16. h3 {[%clk 0:02:28]}  Nf6 {[%clk 0:01:16]} 17. bxc6 {[%clk 0:02:24]}  Bb8 {[%clk 0:01:17]} 18. cxb7 {[%clk 0:02:22]}  Bxb7 {[%clk 0:01:16]} 19. Qa4+ {[%clk 0:02:18]}  Ke7 {[%clk 0:01:09]} 20. c6 {[%clk 0:02:15]}  Bc8 {[%clk 0:01:04]} 21. Ba3+ {[%clk 0:02:15]}  Ke6 {[%clk 0:01:04]} 22. Qb3 {[%clk 0:01:52]}  Kf5 {[%clk 0:00:47]} 23. f3 {[%clk 0:01:49]}  Bg3+ {[%clk 0:00:44]} 24. Kd1 {[%clk 0:01:49]}  Be6 {[%clk 0:00:34]} 25. fxe4+ {[%clk 0:01:47]}  Nxe4 {[%clk 0:00:34]} 26. Bd3 {[%clk 0:01:34]}  Kg6 {[%clk 0:00:20]} 27. Ncxe4 {[%clk 0:01:23]}  dxe4 {[%clk 0:00:20]} 28. Bxe4+ {[%clk 0:01:23]}  Kh6 {[%clk 0:00:17]} 29. d5 {[%clk 0:01:20]}  Bc8 {[%clk 0:00:17]} 30. Bf3 {[%clk 0:01:17]}  Ng6 {[%clk 0:00:16]} 31. Qd3 {[%clk 0:01:10]}  f5 {[%clk 0:00:15]} 32. Nf1 {[%clk 0:01:06]}  Bd6 {[%clk 0:00:13]} 33. g4 {[%clk 0:01:05]}  fxg4 {[%clk 0:00:12]} 34. hxg4 {[%clk 0:01:05]}  h4 {[%clk 0:00:13]} 35. Bc1 {[%clk 0:01:01]}  Rf8 {[%clk 0:00:11]} 36. Be4 {[%clk 0:00:57]}  Ne5 {[%clk 0:00:10]} 37. Qe2 {[%clk 0:00:52]}  Bxg4 {[%clk 0:00:10]} 38. Bf3 {[%clk 0:00:32]}  Bxf3 {[%clk 0:00:09]} 39. e4+ {[%clk 0:00:33]}  Kh7 {[%clk 0:00:07]} 40. Ng3 {[%clk 0:00:30]}  Bxe2+ {[%clk 0:00:07]} 41. Kxe2 {[%clk 0:00:30]}  Qf6 {[%clk 0:00:06]} 42. Nf5 {[%clk 0:00:30]}  Bc5 {[%clk 0:00:05]} 43. Rxh4+ {[%clk 0:00:30]}  Kg8 {[%clk 0:00:04]} 44. Rh3 {[%clk 0:00:22]}  Ng6 {[%clk 0:00:04]} 45. Rg3 {[%clk 0:00:20]}  Be7 {[%clk 0:00:03]} 46. Rxg6 {[%clk 0:00:18]}  Qe5 {[%clk 0:00:03]} 47. Rxg7+ {[%clk 0:00:17]}  Kh8 {[%clk 0:00:03]} 48. Rxe7 {[%clk 0:00:17]}  Qh2+ {[%clk 0:00:03]} 49. Kd3 {[%clk 0:00:16]}  Rb8 {[%clk 0:00:03]} 50. Bd2 {[%clk 0:00:14]}  Rb3+ {[%clk 0:00:00]} 51. Bc3+ {[%clk 0:00:15]} 1-0


[Site "https://www.chess.com"]

[Event "Titled Tuesday Blitz August 08 Late 2023"]
[White "Tharushi, T H D Niklesha"]
[Black "Cooper, Aaron"]
[WhiteFideId "9918264"]
[BlackFideId "2634945"]
[WhiteElo "2125"]
[BlackElo "2291"]
[Result "1-0"]
[Round "10"]
[TimeControl "180+1"]
[Date "2023.08.08"]
[WhiteClock "0:01:13"]
[BlackClock "0:00:30"]
[Board "98"]

1. e4 {[%clk 0:03:00]}  d5 {[%clk 0:02:58]} 2. exd5 {[%clk 0:03:00]}  Qxd5 {[%clk 0:02:59]} 3. Nc3 {[%clk 0:03:01]}  Qd6 {[%clk 0:03:00]} 4. d4 {[%clk 0:03:01]}  Nf6 {[%clk 0:03:00]} 5. Nf3 {[%clk 0:03:01]}  a6 {[%clk 0:03:01]} 6. Be2 {[%clk 0:03:00]}  b5 {[%clk 0:02:57]} 7. a3 {[%clk 0:02:59]}  Bb7 {[%clk 0:02:57]} 8. O-O {[%clk 0:02:58]}  e6 {[%clk 0:02:56]} 9. Ne5 {[%clk 0:02:59]}  c5 {[%clk 0:02:54]} 10. Bf4 {[%clk 0:02:57]}  Qxd4 {[%clk 0:02:49]} 11. Bf3 {[%clk 0:02:01]}  Qxd1 {[%clk 0:02:42]} 12. Raxd1 {[%clk 0:02:02]}  Bxf3 {[%clk 0:02:41]} 13. gxf3 {[%clk 0:02:03]}  h6 {[%clk 0:02:13]} 14. Rd2 {[%clk 0:01:52]}  g5 {[%clk 0:02:11]} 15. Bg3 {[%clk 0:01:49]}  Bg7 {[%clk 0:02:08]} 16. Rfd1 {[%clk 0:01:50]}  O-O {[%clk 0:02:08]} 17. Rd8 {[%clk 0:01:49]}  Nh5 {[%clk 0:01:23]} 18. Rxf8+ {[%clk 0:01:19]}  Kxf8 {[%clk 0:01:01]} 19. Rd8+ {[%clk 0:01:20]}  Ke7 {[%clk 0:01:00]} 20. Rxb8 {[%clk 0:01:16]}  Rxb8 {[%clk 0:00:43]} 21. Nc6+ {[%clk 0:01:15]}  Kd7 {[%clk 0:00:36]} 22. Nxb8+ {[%clk 0:01:14]}  Kc8 {[%clk 0:00:36]} 23. Nxa6 {[%clk 0:01:14]}  Nxg3 {[%clk 0:00:33]} 24. fxg3 {[%clk 0:01:13]}  b4 {[%clk 0:00:33]} 25. axb4 {[%clk 0:01:13]}  cxb4 {[%clk 0:00:30]} 26. Nxb4 {[%clk 0:01:13]} 1-0


[Site "https://www.chess.com"]

[Event "Titled Tuesday Blitz August 08 Late 2023"]
[White "Maluco_do_Natal_00"]
[Black "Rodriguez Santiago, Jaime"]
[BlackFideId "3100898"]
[WhiteElo "2101"]
[BlackElo "2279"]
[Result "0-1"]
[Round "10"]
[TimeControl "180+1"]
[Date "2023.08.08"]
[WhiteClock "0:00:00"]
[BlackClock "0:00:05"]
[Board "99"]

1. e4 {[%clk 0:03:00]}  c6 {[%clk 0:02:59]} 2. d4 {[%clk 0:03:00]}  d5 {[%clk 0:02:56]} 3. Nc3 {[%clk 0:03:01]}  dxe4 {[%clk 0:02:56]} 4. Nxe4 {[%clk 0:03:02]}  Nf6 {[%clk 0:02:57]} 5. Nxf6+ {[%clk 0:03:02]}  exf6 {[%clk 0:02:58]} 6. c3 {[%clk 0:03:02]}  Bd6 {[%clk 0:02:57]} 7. Qc2 {[%clk 0:03:03]}  O-O {[%clk 0:02:57]} 8. Bd3 {[%clk 0:03:03]}  Re8+ {[%clk 0:02:58]} 9. Ne2 {[%clk 0:03:04]}  h5 {[%clk 0:02:56]} 10. Be3 {[%clk 0:03:02]}  Nd7 {[%clk 0:02:55]} 11. c4 {[%clk 0:03:01]}  Nf8 {[%clk 0:02:51]} 12. O-O {[%clk 0:02:54]}  h4 {[%clk 0:02:32]} 13. h3 {[%clk 0:02:52]}  Be6 {[%clk 0:02:20]} 14. Rad1 {[%clk 0:02:31]}  Qd7 {[%clk 0:02:17]} 15. Nf4 {[%clk 0:02:26]}  Rad8 {[%clk 0:01:59]} 16. a3 {[%clk 0:02:20]}  Bb8 {[%clk 0:01:56]} 17. Ne2 {[%clk 0:01:43]}  Bxh3 {[%clk 0:01:23]} 18. gxh3 {[%clk 0:01:41]}  Qxh3 {[%clk 0:01:22]} 19. Nf4 {[%clk 0:01:41]}  Bxf4 {[%clk 0:01:08]} 20. Bxf4 {[%clk 0:01:22]}  Qg4+ {[%clk 0:01:06]} 21. Kh1 {[%clk 0:01:04]}  Qxf4 {[%clk 0:01:05]} 22. f3 {[%clk 0:00:47]}  Ne6 {[%clk 0:00:58]} 23. d5 {[%clk 0:00:45]}  cxd5 {[%clk 0:00:57]} 24. cxd5 {[%clk 0:00:45]}  Ng5 {[%clk 0:00:51]} 25. Qg2 {[%clk 0:00:42]}  h3 {[%clk 0:00:49]} 26. Qg4 {[%clk 0:00:41]}  Qxg4 {[%clk 0:00:48]} 27. fxg4 {[%clk 0:00:40]}  Rd6 {[%clk 0:00:45]} 28. Bc4 {[%clk 0:00:18]}  a6 {[%clk 0:00:40]} 29. a4 {[%clk 0:00:18]}  Re4 {[%clk 0:00:31]} 30. b3 {[%clk 0:00:15]}  Rxg4 {[%clk 0:00:31]} 31. Rde1 {[%clk 0:00:14]}  g6 {[%clk 0:00:29]} 32. Re7 {[%clk 0:00:13]}  b5 {[%clk 0:00:26]} 33. axb5 {[%clk 0:00:13]}  axb5 {[%clk 0:00:25]} 34. Bxb5 {[%clk 0:00:13]}  Rxd5 {[%clk 0:00:22]} 35. Bc4 {[%clk 0:00:13]}  Rd2 {[%clk 0:00:19]} 36. Rxf6 {[%clk 0:00:12]}  h2 {[%clk 0:00:10]} 37. Rxg6+ {[%clk 0:00:11]}  Kf8 {[%clk 0:00:08]} 38. Rxf7+ {[%clk 0:00:08]}  Nxf7 {[%clk 0:00:03]} 39. Rxg4 {[%clk 0:00:08]}  Ne5 {[%clk 0:00:03]} 40. Rf4+ {[%clk 0:00:08]}  Ke7 {[%clk 0:00:04]} 41. Rh4 {[%clk 0:00:08]}  Nf3 {[%clk 0:00:04]} 42. Re4+ {[%clk 0:00:07]}  Kd6 {[%clk 0:00:03]} 43. Rg4 {[%clk 0:00:03]}  Rd1+ {[%clk 0:00:03]} 44. Kg2 {[%clk 0:00:02]}  h1=Q+ {[%clk 0:00:04]} 45. Kg3 {[%clk 0:00:01]}  Rg1+ {[%clk 0:00:03]} 46. Kf4 {[%clk 0:00:02]}  Rxg4+ {[%clk 0:00:04]} 47. Kxg4 {[%clk 0:00:03]}  Nd2 {[%clk 0:00:05]} 48. Kf4 {[%clk 0:00:00]}  Qg1 {[%clk 0:00:05]} 0-1


[Site "https://www.chess.com"]